bitfinex/quotes_BTCUSD_20240721
["timestamp","ask_amount","ask_price","bid_price","bid_amount"]
[1721541705912,0.01484,67203.0,67202.0,0.1339561]
[1721541706311,0.01284,67203.0,67202.0,0.1339561]
[1721541706717,0.00084,67203.0,67202.0,0.1339561]
[1721541706872,0.00184,67203.0,67202.0,0.1339561]
[1721541707486,0.00184,67203.0,67202.0,0.13395598]
[1721541707734,0.00384,67203.0,67202.0,0.13395598]
[1721541708042,0.00184,67203.0,67202.0,0.13395598]
[1721541708298,0.0018,67203.0,67202.0,0.19725628]
[1721541708498,0.0038,67203.0,67202.0,0.19725628]
[1721541708675,0.01836856,67203.0,67202.0,0.19725628]
[1721541709073,0.01936856,67203.0,67202.0,0.19725628]
[1721541710609,0.01936856,67203.0,67202.0,0.07368033]
[1721541710837,0.01936856,67203.0,67202.0,0.13395598]
[1721541710992,0.01936856,67203.0,67202.0,0.01038003]
[1721541711198,0.01936856,67203.0,67202.0,0.12357595]
[1721541711401,0.01936856,67203.0,67202.0,0.13394885]
[1721541713405,0.0038,67203.0,67202.0,0.13394885]
[1721541714247,0.0038,67203.0,67202.0,0.21364885]
[1721541714898,0.0028,67203.0,67202.0,0.21364885]
[1721541715100,0.0008,67203.0,67202.0,0.21364885]
[1721541715304,0.0018,67203.0,67202.0,0.21364885]
[1721541715685,0.0018,67203.0,67202.0,0.13394885]
[1721541717034,0.0018,67203.0,67202.0,0.1339485]
[1721541718279,0.0008,67203.0,67202.0,0.1339485]
[1721541718638,0.0018,67203.0,67202.0,0.1339485]
[1721541719212,0.24109414,67204.0,67202.0,0.1339485]
[1721541719431,0.1416,67204.0,67203.0,0.1235756]
[1721541719848,0.0253189,67204.0,67203.0,0.13399955]
[1721541720397,0.1443599,67204.0,67203.0,0.13399955]
[1721541720632,0.09976094,67204.0,67203.0,0.13399955]
[1721541720812,0.238074,67206.0,67203.0,0.13399955]
[1721541720987,0.12104,67204.0,67198.0,0.119049]
[1721541721208,0.09132146,67204.0,67199.0,0.1235756]
[1721541721414,0.002,67204.0,67200.0,0.1235756]
[1721541721590,0.11904,67204.0,67201.0,0.12318902]
[1721541721815,0.09032317,67204.0,67201.0,0.01042987]
[1721541722041,0.18063692,67206.0,67203.0,0.00882335]
[1721541722404,0.12204,67204.0,67203.0,0.00882335]
[1721541722603,0.12104,67204.0,67203.0,0.00882335]
[1721541723002,0.12204,67204.0,67203.0,0.00882335]
[1721541723246,0.10616005,67204.0,67203.0,0.00882335]
[1721541723394,0.12172864,67204.0,67203.0,0.00882335]
[1721541723598,0.05435022,67205.0,67203.0,0.00882335]
[1721541723803,0.11904,67204.0,67203.0,0.00882335]
[1721541724211,0.08932146,67204.0,67203.0,0.00882335]
[1721541724611,0.001,67204.0,67203.0,0.00882335]
[1721541724832,0.001,67204.0,67203.0,0.0192473]
[1721541724833,0.11904,67204.0,67203.0,0.0192473]
[1721541725038,0.003,67205.0,67203.0,0.0192473]
[1721541725400,0.11904,67204.0,67203.0,0.0192473]
[1721541725512,0.17052237,67206.0,67203.0,0.0192473]
[1721541725733,0.14280636,67206.0,67203.0,0.0192473]
[1721541726357,0.10715809,67206.0,67203.0,0.0192473]
[1721541726760,0.10715809,67206.0,67203.0,0.01042395]
[1721541727494,0.11015809,67206.0,67203.0,0.01042395]
[1721541727741,0.09527936,67206.0,67203.0,0.01042395]
[1721541727893,0.09927936,67206.0,67203.0,0.01042395]
[1721541728301,0.09927936,67206.0,67204.0,0.00882505]
[1721541728511,0.119038,67205.0,67204.0,0.00882505]
[1721541729230,0.10415905,67205.0,67204.0,0.00882505]
[1721541729547,0.10415905,67205.0,67204.0,0.13240065]
[1721541729943,0.10415905,67205.0,67204.0,0.1235756]
[1721541730733,0.08927925,67205.0,67204.0,0.1235756]
[1721541731299,0.13788604,67205.0,67204.0,0.1235756]
[1721541731899,0.04860679,67205.0,67204.0,0.1235756]
[1721541732124,0.16764579,67205.0,67204.0,0.1235802]
[1721541732336,0.123039,67205.0,67202.0,0.0788]
[1721541732536,0.16765416,67205.0,67203.0,0.12358061]
[1721541732769,0.16765416,67205.0,67202.0,0.0788]
[1721541732770,0.16765416,67205.0,67204.0,0.12358061]
[1721541732922,0.10815997,67205.0,67202.0,0.0788]
[1721541733121,0.10815997,67205.0,67203.0,0.1235829]
[1721541733326,0.10815997,67205.0,67204.0,0.1235829]
[1721541733690,0.10815997,67205.0,67202.0,0.0788]
[1721541733890,0.11015997,67205.0,67203.0,0.12358289]
[1721541734138,0.09528038,67205.0,67202.0,0.0788]
[1721541734305,0.09928038,67205.0,67203.0,0.12358289]
[1721541734516,0.09928038,67205.0,67202.0,0.0788]
[1721541734687,0.09728038,67205.0,67203.0,0.12358289]
[1721541734902,0.09328038,67205.0,67204.0,0.12358063]
[1721541735111,0.09528038,67205.0,67204.0,0.12358058]
[1721541735512,0.02728032,67205.0,67204.0,0.12358058]
[1721541735879,0.14431932,67205.0,67202.0,0.0788]
[1721541736086,0.121039,67205.0,67203.0,0.1235827]
[1721541736295,0.18796935,67205.0,67202.0,0.0788]
[1721541736498,0.121039,67205.0,67203.0,0.1235827]
[1721541736698,0.18796935,67205.0,67202.0,0.0788]
[1721541736850,0.002,67205.0,67203.0,0.12358131]
[1721541737079,0.002,67205.0,67202.0,0.0788]
[1721541737257,0.002,67205.0,67203.0,0.12358294]
[1721541737258,0.07093035,67205.0,67203.0,0.12358294]
[1721541737460,0.11904,67204.0,67202.0,0.0788]
[1721541737657,0.11904,67204.0,67203.0,0.12358294]
[1721541737858,0.11904,67204.0,67192.0,0.0776]
[1721541737859,0.119054,67196.0,67192.0,0.0776]
[1721541738071,0.119054,67196.0,67195.0,1.38708549]
[1721541738072,0.10417223,67196.0,67195.0,1.38708549]
[1721541738271,0.10417223,67196.0,67195.0,1.54143506]
[1721541739100,0.238103,67198.0,67195.0,1.55043506]
[1721541739101,0.3432742,67198.0,67195.0,1.55043506]
[1721541739288,0.3432742,67198.0,67196.0,0.12358549]
[1721541739650,0.3432742,67198.0,67195.0,1.43729688]
[1721541739651,0.3432742,67198.0,67197.0,0.13402687]
[1721541740421,0.10417063,67198.0,67197.0,0.13402687]
[1721541740834,0.10517063,67198.0,67197.0,0.13402687]
[1721541740997,0.10417063,67198.0,67197.0,0.13402687]
[1721541741581,0.10517063,67198.0,67197.0,0.14003387]
[1721541741734,0.09029004,67198.0,67197.0,0.14003387]
[1721541742950,0.13493299,67198.0,67197.0,0.14003387]
[1721541743405,0.13493299,67198.0,67197.0,0.14003318]
[1721541743620,0.13493299,67198.0,67197.0,0.01644138]
[1721541743808,0.13493299,67198.0,67197.0,0.02144138]
[1721541744010,0.04564295,67198.0,67197.0,0.02144138]
[1721541744484,0.164695,67198.0,67197.0,0.02144138]
[1721541745500,0.04464262,67199.0,67197.0,0.02144138]
[1721541745705,0.16369362,67198.0,67197.0,0.02144138]
[1721541746711,0.30439362,67198.0,67197.0,0.02144138]
[1721541746915,0.30439362,67198.0,67197.0,0.01644138]
[1721541747115,0.30439362,67198.0,67197.0,0.006]
[1721541747314,0.30439362,67198.0,67197.0,0.01]
[1721541747683,0.259751,67198.0,67197.0,0.006]
[1721541747892,0.16368972,67198.0,67197.0,0.011]
[1721541748095,0.14880895,67198.0,67197.0,0.011]
[1721541748297,0.01492266,67198.0,67197.0,0.09746]
[1721541748514,0.119051,67198.0,67197.0,0.0990473]
[1721541749346,0.1041697,67198.0,67197.0,0.0990473]
[1721541749551,0.1041697,67198.0,67197.0,0.0886]
[1721541749757,0.1041697,67198.0,67197.0,0.0990473]
[1721541750406,0.05470532,67200.0,67197.0,0.0990473]
[1721541750606,0.0893353,67198.0,67197.0,0.0990473]
[1721541750820,0.0695,67200.0,67197.0,0.0886]
[1721541751156,0.22321333,67201.0,67197.0,0.0886]
[1721541751157,0.119046,67201.0,67197.0,0.0886]
[1721541751351,0.08932956,67201.0,67198.0,0.067494]
[1721541751556,0.307586,67203.0,67199.0,0.0756]
[1721541751761,0.119046,67201.0,67199.0,0.0756]
[1721541752127,0.10416502,67201.0,67200.0,0.01043842]
[1721541752322,0.12716502,67201.0,67200.0,0.02579166]
[1721541753152,0.12716502,67201.0,67200.0,0.01535324]
[1721541754089,0.11228441,67201.0,67200.0,0.01535324]
[1721541754322,0.023,67201.0,67200.0,0.02578766]
[1721541754553,0.023,67202.0,67200.0,0.01535324]
[1721541754763,0.023,67202.0,67201.0,0.15616532]
[1721541754764,0.142045,67202.0,67201.0,0.15616532]
[1721541754970,0.142045,67202.0,67201.0,0.1403]
[1721541755194,0.142045,67202.0,67201.0,0.15073122]
[1721541756274,0.12708018,67202.0,67201.0,0.15073122]
[1721541756473,0.119045,67202.0,67201.0,0.15073122]
[1721541756886,0.119045,67202.0,67201.0,0.16589674]
[1721541757298,0.123045,67202.0,67201.0,0.16589674]
[1721541757544,0.123045,67202.0,67201.0,0.17472221]
[1721541757752,0.119045,67202.0,67201.0,0.17472221]
[1721541758103,0.10824852,67202.0,67201.0,0.17472221]
[1721541758508,0.10824852,67202.0,67201.0,0.11002221]
[1721541758729,0.10824852,67202.0,67201.0,0.09485669]
[1721541758939,0.10824852,67202.0,67201.0,0.01043122]
[1721541760187,0.09336822,67202.0,67201.0,0.01043122]
[1721541761789,0.004,67202.0,67201.0,0.01043122]
[1721541762403,0.123045,67202.0,67201.0,0.01043122]
[1721541767123,0.19000278,67202.0,67201.0,0.01043122]
[1721541767296,0.21328447,67202.0,67201.0,0.01043122]
[1721541768097,0.21328447,67202.0,67201.0,0.08603122]
[1721541769089,0.123045,67202.0,67201.0,0.08603122]
[1721541769314,0.123045,67202.0,67201.0,0.20961861]
[1721541769495,0.19000278,67202.0,67201.0,0.08603122]
[1721541770116,0.123045,67202.0,67201.0,0.08603122]
[1721541770298,0.19000987,67202.0,67201.0,0.20961871]
[1721541770498,0.123045,67202.0,67201.0,0.08603122]
[1721541770754,0.21329456,67202.0,67201.0,0.08603122]
[1721541771299,0.09424956,67202.0,67201.0,0.08603122]
[1721541771503,0.09424956,67202.0,67201.0,0.20961877]
[1721541771923,0.09424956,67202.0,67201.0,0.08603122]
[1721541772169,0.07936977,67202.0,67201.0,0.15183122]
[1721541772481,0.14887825,67202.0,67201.0,0.15183122]
[1721541773316,0.0819017,67202.0,67201.0,0.15183122]
[1721541773716,0.14888245,67202.0,67201.0,0.15183122]
[1721541773917,0.07938245,67202.0,67201.0,0.15183122]
[1721541774150,0.0819017,67202.0,67201.0,0.15183122]
[1721541774560,0.0819017,67202.0,67201.0,0.27541968]
[1721541774980,0.0819017,67202.0,67201.0,0.15183122]
[1721541775316,0.0859017,67202.0,67201.0,0.15183122]
[1721541775840,0.0859017,67202.0,67201.0,0.27541967]
[1721541776041,0.14049118,67202.0,67201.0,0.27541967]
[1721541776243,0.0735,67202.0,67201.0,0.27541967]
[1721541776456,0.0735,67202.0,67201.0,0.15183122]
[1721541776675,0.0735,67202.0,67201.0,0.27541829]
[1721541776676,0.09678134,67202.0,67201.0,0.27541829]
[1721541777031,0.0735,67202.0,67201.0,0.27541829]
[1721541777228,0.09678134,67202.0,67201.0,0.27541829]
[1721541777864,0.18611204,67202.0,67201.0,0.15183122]
[1721541778266,0.18611204,67202.0,67201.0,0.27541959]
[1721541779684,0.18611204,67202.0,67201.0,0.15183122]
[1721541779685,0.18612453,67202.0,67201.0,0.15183122]
[1721541780079,0.18612453,67202.0,67201.0,0.27541959]
[1721541780932,0.18612453,67202.0,67201.0,0.20961959]
[1721541781282,0.09678134,67202.0,67201.0,0.20961959]
[1721541781707,0.09278134,67202.0,67201.0,0.20961959]
[1721541782112,0.09578134,67202.0,67201.0,0.08603122]
[1721541782323,0.20747474,67202.0,67201.0,0.08603122]
[1721541782523,0.09578134,67202.0,67201.0,0.08603122]
[1721541782767,0.09578134,67202.0,67201.0,0.20961999]
[1721541783939,0.92760134,67202.0,67201.0,0.01043122]
[1721541784719,0.83760134,67202.0,67201.0,0.01043122]
[1721541784917,0.92760134,67202.0,67201.0,0.01043122]
[1721541785756,1.05848001,67202.0,67201.0,0.01043122]
[1721541785958,0.92760134,67202.0,67201.0,0.01043122]
[1721541787867,0.595227,67201.0,67200.0,0.000924]
[1721541787993,0.70850834,67201.0,67200.0,0.000924]
[1721541789589,0.71050834,67201.0,67200.0,0.000924]
[1721541793872,0.71050834,67201.0,67200.0,0.01072792]
[1721541794047,0.71050834,67201.0,67200.0,0.000924]
[1721541794245,0.71050834,67201.0,67200.0,0.01072792]
[1721541794477,0.71050834,67201.0,67200.0,0.000924]
[1721541794681,0.71050834,67201.0,67200.0,0.01072792]
[1721541794888,0.71050834,67201.0,67200.0,0.000924]
[1721541795096,0.71050834,67201.0,67200.0,0.01072792]
[1721541795314,0.71050834,67201.0,67200.0,0.000924]
[1721541795517,0.71050834,67201.0,67200.0,0.01072792]
[1721541795720,0.71050834,67201.0,67200.0,0.000924]
[1721541795933,0.71050834,67201.0,67200.0,0.01072792]
[1721541796104,0.71050834,67201.0,67200.0,0.000924]
[1721541796344,0.71050834,67201.0,67200.0,0.01072792]
[1721541796558,0.71050834,67201.0,67200.0,0.000924]
[1721541796766,0.71050834,67201.0,67200.0,0.01072792]
[1721541796976,0.71050834,67201.0,67200.0,0.000924]
[1721541796977,1.23988108,67201.0,67200.0,0.000924]
[1721541797194,1.23988108,67201.0,67200.0,0.01072792]
[1721541797195,1.26288108,67201.0,67200.0,0.01072792]
[1721541797812,1.26288108,67201.0,67200.0,0.000924]
[1721541800002,1.27288108,67201.0,67200.0,0.000924]
[1721541800419,1.36288108,67201.0,67200.0,0.000924]
[1721541801225,1.27288108,67201.0,67200.0,0.000924]
[1721541803960,1.22598108,67201.0,67200.0,0.000924]
[1721541804172,1.13598108,67201.0,67200.0,0.000924]
[1721541805113,1.20548108,67201.0,67200.0,0.000924]
[1721541809738,1.35318108,67201.0,67200.0,0.000924]
[1721541811423,1.44318108,67201.0,67200.0,0.000924]
[1721541814597,1.59753065,67201.0,67200.0,0.000924]
[1721541815776,1.4606825,67201.0,67200.0,0.000924]
[1721541816338,1.5106825,67201.0,67200.0,0.000924]
[1721541816760,1.5086825,67201.0,67200.0,0.000924]
[1721541816960,1.7467735,67201.0,67200.0,0.000924]
[1721541817135,1.75686408,67201.0,67200.0,0.001924]
[1721541817535,1.89362165,67201.0,67200.0,0.001924]
[1721541817733,1.91162165,67201.0,67200.0,0.001924]
[1721541818079,1.75727208,67201.0,67200.0,0.001924]
[1721541818383,1.75827208,67201.0,67200.0,0.002924]
[1721541820291,1.75841852,67201.0,67200.0,0.002924]
[1721541821272,1.70841852,67201.0,67200.0,0.002924]
[1721541821494,1.31558552,67201.0,67200.0,0.002924]
[1721541821666,1.43463052,67201.0,67200.0,0.002924]
[1721541822079,1.67272152,67201.0,67200.0,0.002924]
[1721541823218,1.72272152,67201.0,67200.0,0.002924]
[1721541823421,1.70457508,67201.0,67200.0,0.002924]
[1721541823630,1.7229898,67201.0,67200.0,0.002924]
[1721541825063,1.87733937,67201.0,67200.0,0.002924]
[1721541826817,1.85892465,67201.0,67200.0,0.002924]
[1721541827042,0.833469,67189.0,67186.0,0.002794]
[1721541827251,1.28215352,67189.0,67184.0,0.0803]
[1721541827456,1.28215352,67189.0,67188.0,0.01332188]
[1721541827633,1.29363884,67189.0,67188.0,0.000924]
[1721541828546,1.29563884,67189.0,67188.0,0.000924]
[1721541828748,1.24764492,67189.0,67188.0,0.146924]
[1721541828953,1.31714492,67189.0,67188.0,0.146924]
[1721541829104,1.20563884,67189.0,67188.0,0.146924]
[1721541829312,1.20663884,67189.0,67188.0,0.146924]
[1721541830423,1.29583886,67189.0,67188.0,0.146924]
[1721541830693,1.30482432,67189.0,67188.0,0.146924]
[1721541833119,1.30482217,67189.0,67188.0,0.146924]
[1721541834845,1.2156243,67189.0,67188.0,0.146924]
[1721541837043,1.34833654,67189.0,67188.0,0.146924]
[1721541837254,1.43833654,67189.0,67188.0,0.000924]
[1721541839140,1.54983467,67189.0,67188.0,0.000924]
[1721541839550,1.43833654,67189.0,67188.0,0.000924]
[1721541839919,1.3056243,67189.0,67188.0,0.000924]
[1721541840852,1.4323243,67189.0,67188.0,0.000924]
[1721541841059,1.4979243,67189.0,67188.0,0.000924]
[1721541841259,1.51666447,67189.0,67188.0,0.000924]
[1721541842293,1.46667052,67189.0,67188.0,0.000924]
[1721541842648,1.62102009,67189.0,67188.0,0.000924]
[1721541843067,1.46667052,67189.0,67188.0,0.000924]
[1721541843296,1.51667052,67189.0,67188.0,0.000724]
[1721541843560,1.46667052,67189.0,67188.0,0.000724]
[1721541844989,1.75420306,67189.0,67188.0,0.000724]
[1721541845988,1.75320306,67189.0,67188.0,0.000724]
[1721541846148,1.75120306,67189.0,67188.0,0.000724]
[1721541846348,1.91455263,67189.0,67188.0,0.001724]
[1721541846570,1.91455263,67189.0,67179.0,0.002794]
[1721541846571,0.833581,67180.0,67179.0,0.002794]
[1721541846775,0.833581,67180.0,67178.0,1.2635]
[1721541846776,0.357253,67179.0,67178.0,1.2635]
[1721541846939,0.9812366,67179.0,67178.0,1.2635]
[1721541847156,0.9812366,67179.0,67172.0,0.0817]
[1721541847157,0.357285,67173.0,67172.0,0.0817]
[1721541847353,1.19229626,67173.0,67172.0,0.0817]
[1721541847548,1.40529626,67173.0,67172.0,0.0817]
[1721541847798,1.31529626,67173.0,67172.0,0.0817]
[1721541848059,1.3152943,67173.0,67172.0,0.0817]
[1721541848283,1.20383484,67173.0,67172.0,0.0817]
[1721541849303,1.29295327,67173.0,67172.0,0.0817]
[1721541849728,1.29295327,67173.0,67172.0,0.0847]
[1721541850061,1.20383484,67173.0,67172.0,0.0847]
[1721541851058,1.36064755,67173.0,67172.0,0.0847]
[1721541851283,1.29383484,67173.0,67172.0,0.0847]
[1721541851486,1.3606484,67173.0,67172.0,0.0847]
[1721541851684,1.29383484,67173.0,67172.0,0.0847]
[1721541851885,1.27064992,67173.0,67172.0,0.0847]
[1721541853126,1.20383484,67173.0,67172.0,0.0847]
[1721541853898,1.20383484,67173.0,67172.0,0.085624]
[1721541855151,1.18054674,67173.0,67172.0,0.085624]
[1721541857149,1.31506737,67173.0,67172.0,0.085624]
[1721541857363,1.27054674,67173.0,67172.0,0.085624]
[1721541858320,1.27054674,67173.0,67172.0,0.085584]
[1721541859163,1.31506122,67173.0,67172.0,0.085584]
[1721541859362,1.27054674,67173.0,67172.0,0.085584]
[1721541859561,1.31505488,67173.0,67172.0,0.085584]
[1721541860513,1.27054674,67173.0,67172.0,0.085584]
[1721541866313,1.20104674,67173.0,67172.0,0.085584]
[1721541866516,1.27054674,67173.0,67172.0,0.085584]
[1721541867178,1.2938415,67173.0,67172.0,0.085584]
[1721541869214,1.49819107,67173.0,67172.0,0.003924]
[1721541869422,1.53722531,67173.0,67172.0,0.003924]
[1721541869604,1.58722531,67173.0,67172.0,0.003924]
[1721541869811,1.51624821,67173.0,67172.0,0.003924]
[1721541870005,1.62754101,67173.0,67172.0,0.003924]
[1721541870277,1.62754101,67173.0,67172.0,0.000924]
[1721541870482,1.49819107,67173.0,67172.0,0.000924]
[1721541870688,1.58169942,67173.0,67172.0,0.000924]
[1721541872147,1.47440163,67173.0,67172.0,0.000924]
[1721541873506,1.47440163,67173.0,67172.0,0.077224]
[1721541873708,1.47447438,67173.0,67172.0,0.077224]
[1721541876549,1.47438665,67173.0,67172.0,0.077224]
[1721541876751,1.45619107,67173.0,67172.0,0.077224]
[1721541876953,1.47438668,67173.0,67172.0,0.077224]
[1721541877346,1.47419326,67173.0,67172.0,0.077224]
[1721541878203,1.47419326,67173.0,67172.0,0.000924]
[1721541878204,1.52419326,67173.0,67172.0,0.000924]
[1721541880074,1.50619107,67173.0,67172.0,0.000924]
[1721541880277,1.66403371,67173.0,67172.0,0.000924]
[1721541882447,1.47373371,67173.0,67172.0,0.000924]
[1721541883254,1.31938414,67173.0,67172.0,0.000924]
[1721541883429,1.31937828,67173.0,67172.0,0.000924]
[1721541883671,1.3018415,67173.0,67172.0,0.000924]
[1721541883871,1.31937838,67173.0,67172.0,0.000924]
[1721541886449,1.3193311,67173.0,67172.0,0.000924]
[1721541888170,1.45305441,67173.0,67172.0,0.000924]
[1721541888570,1.45389441,67173.0,67172.0,0.000924]
[1721541889100,1.3201711,67173.0,67172.0,0.000924]
[1721541889687,1.32017348,67173.0,67172.0,0.000924]
[1721541889915,1.16067348,67173.0,67172.0,0.000924]
[1721541890114,1.32017348,67173.0,67172.0,0.000924]
[1721541890687,1.47452305,67173.0,67172.0,0.000924]
[1721541891092,1.32017348,67173.0,67172.0,0.000924]
[1721541893222,1.32019943,67173.0,67172.0,0.000924]
[1721541895962,1.32010078,67173.0,67172.0,0.000924]
[1721541899090,1.3026815,67173.0,67172.0,0.000924]
[1721541899310,1.32007773,67173.0,67172.0,0.000924]
[1721541899470,1.4744273,67173.0,67172.0,0.000924]
[1721541899944,1.32007773,67173.0,67172.0,0.000924]
[1721541900551,1.37007773,67173.0,67172.0,0.000924]
[1721541901491,1.3526815,67173.0,67172.0,0.000924]
[1721541901700,1.80342993,67173.0,67172.0,0.000924]
[1721541902229,1.65752993,67173.0,67172.0,0.000924]
[1721541902430,1.66909999,67173.0,67172.0,0.000924]
[1721541902690,1.71975241,67173.0,67172.0,0.000924]
[1721541902864,0.92121999,67173.0,67172.0,0.148824]
[1721541903062,0.99071999,67173.0,67172.0,0.148824]
[1721541903220,1.10507935,67173.0,67172.0,0.148824]
[1721541903672,1.11507935,67173.0,67172.0,0.148824]
[1721541904661,1.13859883,67173.0,67172.0,0.148824]
[1721541904862,1.06909883,67173.0,67172.0,0.148824]
[1721541905072,1.00466659,67173.0,67172.0,0.148824]
[1721541907669,0.9874915,67173.0,67172.0,0.148824]
[1721541907873,1.00513424,67173.0,67172.0,0.148824]
[1721541909118,1.13904718,67173.0,67172.0,0.148824]
[1721541910343,1.13920739,67173.0,67172.0,0.148824]
[1721541910950,1.12141828,67173.0,67172.0,0.148824]
[1721541911163,1.13945154,67173.0,67172.0,0.148824]
[1721541912582,0.9874915,67173.0,67172.0,0.148824]
[1721541914363,0.3225165,67173.0,67172.0,0.148824]
[1721541914569,0.23763476,67173.0,67172.0,0.148824]
[1721541914773,0.04513476,67173.0,67172.0,0.506115]
[1721541915158,0.02184,67173.0,67172.0,0.88049921]
[1721541916205,0.00084,67173.0,67172.0,0.88049921]
[1721541916415,0.01184,67173.0,67172.0,0.88049921]
[1721541916645,0.02184,67173.0,67172.0,0.88049921]
[1721541917058,0.01184,67173.0,67172.0,0.88049921]
[1721541917264,0.01184,67173.0,67172.0,0.51867038]
[1721541917473,0.01184,67173.0,67172.0,0.52067038]
[1721541919296,0.01184,67173.0,67172.0,0.51867038]
[1721541919487,0.01284,67173.0,67172.0,0.51867038]
[1721541919689,0.00184,67173.0,67172.0,0.51867038]
[1721541920134,0.00284,67173.0,67172.0,0.51867038]
[1721541920486,0.00084,67173.0,67172.0,0.52067038]
[1721541923022,0.00084,67173.0,67172.0,0.51867038]
[1721541923227,0.00184,67173.0,67172.0,0.51867038]
[1721541923849,0.00284,67173.0,67172.0,0.51867038]
[1721541924054,0.00284,67173.0,67172.0,0.16137938]
[1721541924255,0.00484,67173.0,67172.0,0.16137938]
[1721541924688,0.00284,67173.0,67172.0,0.16137938]
[1721541924891,0.00384,67173.0,67172.0,0.16137938]
[1721541925102,0.122935,67173.0,67172.0,0.16137938]
[1721541925291,0.120935,67173.0,67172.0,0.16137938]
[1721541925505,0.124935,67173.0,67172.0,0.16137938]
[1721541925742,0.124935,67173.0,67172.0,0.148824]
[1721541926098,0.123935,67173.0,67172.0,0.148824]
[1721541926631,0.365125,67173.0,67172.0,0.148824]
[1721541927024,0.362125,67173.0,67172.0,0.148824]
[1721541927227,0.369125,67173.0,67172.0,0.148824]
[1721541927443,0.365125,67173.0,67172.0,0.148824]
[1721541927866,0.373125,67173.0,67172.0,0.148824]
[1721541928052,0.134935,67173.0,67172.0,0.148824]
[1721541929138,0.134935,67173.0,67172.0,0.16135227]
[1721541929300,0.01584,67173.0,67172.0,0.16135227]
[1721541931430,0.01584,67173.0,67172.0,0.16469222]
[1721541933677,0.01584,67173.0,67172.0,0.28378922]
[1721541934094,0.01584,67173.0,67172.0,0.16469222]
[1721541937590,0.442625,67173.0,67172.0,0.16469222]
[1721541938575,0.542625,67173.0,67172.0,0.09969222]
[1721541938813,0.542625,67173.0,67172.0,0.083824]
[1721541939181,1.02531095,67173.0,67172.0,0.01678921]
[1721541939417,1.3310396,67173.0,67172.0,0.01678921]
[1721541939614,1.30979509,67173.0,67172.0,0.01678921]
[1721541939814,1.4888724,67173.0,67172.0,0.01678921]
[1721541940058,1.39979509,67173.0,67172.0,0.01678921]
[1721541940874,1.21968088,67173.0,67172.0,0.01678921]
[1721541942428,1.30968088,67173.0,67172.0,0.000924]
[1721541943426,1.37684384,67173.0,67172.0,0.000924]
[1721541943959,1.32684384,67173.0,67172.0,0.000924]
[1721541944165,1.48119341,67173.0,67172.0,0.000924]
[1721541944739,1.53119341,67173.0,67172.0,0.000924]
[1721541944947,1.48119341,67173.0,67172.0,0.000924]
[1721541945151,1.76938341,67173.0,67172.0,0.000924]
[1721541945367,1.76938341,67173.0,67168.0,0.000924]
[1721541945368,0.933717,67169.0,67168.0,0.000924]
[1721541945573,1.73260374,67169.0,67168.0,0.000924]
[1721541945777,1.79596287,67169.0,67168.0,0.000924]
[1721541946188,1.92949293,67169.0,67168.0,0.000924]
[1721541946390,1.92949275,67169.0,67168.0,0.000924]
[1721541946624,1.80396402,67169.0,67168.0,0.000924]
[1721541946829,1.93749348,67169.0,67168.0,0.000924]
[1721541947233,2.09184305,67169.0,67168.0,0.000924]
[1721541947885,2.10084305,67169.0,67168.0,0.000924]
[1721541948472,1.95024745,67169.0,67168.0,0.000924]
[1721541948877,2.10085537,67169.0,67168.0,0.000924]
[1721541949314,1.96736008,67169.0,67168.0,0.000924]
[1721541952013,1.96735225,67169.0,67168.0,0.000924]
[1721541952528,1.91735225,67169.0,67168.0,0.000924]
[1721541952976,1.96735225,67169.0,67168.0,0.000924]
[1721541954978,1.95024745,67169.0,67168.0,0.000924]
[1721541955285,1.96768807,67169.0,67168.0,0.000924]
[1721541955630,1.97669223,67169.0,67168.0,0.000924]
[1721541956724,1.92669223,67169.0,67168.0,0.000924]
[1721541956922,1.97669223,67169.0,67168.0,0.000924]
[1721541957155,2.02028355,67169.0,67168.0,0.000924]
[1721541957568,1.93778355,67169.0,67168.0,0.000924]
[1721541958049,1.9377859,67169.0,67168.0,0.000924]
[1721541958266,1.82666995,67169.0,67168.0,0.000924]
[1721541958494,1.93779814,67169.0,67168.0,0.000924]
[1721541959082,1.98779814,67169.0,67168.0,0.000924]
[1721541960485,1.93779814,67169.0,67168.0,0.000924]
[1721541961185,1.98779814,67169.0,67168.0,0.000924]
[1721541962152,2.00529209,67169.0,67168.0,0.000924]
[1721541964067,2.00527895,67169.0,67168.0,0.000924]
[1721541964471,2.0051998,67169.0,67168.0,0.000924]
[1721541965702,2.0051998,67169.0,67159.0,0.0798]
[1721541965703,0.883752,67166.0,67159.0,0.0798]
[1721541965911,1.24392788,67166.0,67159.0,0.0798]
[1721541966122,1.34392788,67166.0,67159.0,0.0798]
[1721541966295,1.40002318,67166.0,67159.0,0.0798]
[1721541966900,1.39999627,67166.0,67159.0,0.0798]
[1721541967104,1.55434592,67166.0,67159.0,0.0798]
[1721541967525,1.60434592,67166.0,67159.0,0.0798]
[1721541967726,1.55434592,67166.0,67159.0,0.0798]
[1721541967901,1.55834592,67166.0,67159.0,0.0798]
[1721541968105,1.56334592,67166.0,67159.0,0.0798]
[1721541970318,1.56348092,67166.0,67159.0,0.0798]
[1721541970533,1.56348192,67166.0,67159.0,0.0798]
[1721541971300,1.47457806,67166.0,67159.0,0.0798]
[1721541971485,1.52457806,67166.0,67159.0,0.0798]
[1721541972617,1.52457806,67166.0,67156.0,0.066824]
[1721541972618,0.05,67157.0,67156.0,0.000924]
[1721541972830,0.357397,67152.0,67151.0,0.0828]
[1721541973033,0.85261319,67152.0,67151.0,0.0828]
[1721541973245,0.8745068,67152.0,67151.0,0.0828]
[1721541973453,0.96439396,67152.0,67151.0,0.0828]
[1721541973866,0.9645365,67152.0,67151.0,0.0828]
[1721541974065,1.3510665,67152.0,67151.0,0.0828]
[1721541974265,1.22144999,67152.0,67151.0,0.0828]
[1721541974728,1.22744999,67152.0,67151.0,0.0828]
[1721541975231,1.29409509,67152.0,67151.0,0.0828]
[1721541975369,1.30009509,67152.0,67151.0,0.0828]
[1721541975776,1.30509509,67152.0,67151.0,0.0828]
[1721541976137,1.39279956,67152.0,67151.0,0.0828]
[1721541976290,1.30509164,67152.0,67151.0,0.0828]
[1721541976493,1.23840735,67152.0,67151.0,0.0828]
[1721541977316,1.28283749,67152.0,67151.0,0.0828]
[1721541977519,1.23840735,67152.0,67151.0,0.0828]
[1721541978079,1.30505073,67152.0,67151.0,0.0828]
[1721541978230,1.5494003,67152.0,67151.0,0.0828]